fUST/lending_fUST_20251113
["ID","MTS","AMOUNT","RATE_DAILY","PERIOD"]
[393778128,1762975852283,-156.587,0.0004287,10]
[393778129,1762975852291,-160.0,0.0004287,10]
[393778130,1762975852301,-300.78373289,0.0004287,10]
[393778131,1762975852310,-160.0,0.0004287,10]
[393778132,1762975852318,-151.0,0.0004287,10]
[393778133,1762975852327,-160.0,0.0004287,10]
[393778134,1762975852336,-151.0,0.0004287,10]
[393778135,1762975852345,-160.0,0.0004287,10]
[393778136,1762975852354,-151.0,0.0004287,10]
[393778137,1762975852364,-160.0,0.0004287,10]
[393778138,1762975852373,-151.0,0.0004287,10]
[393778139,1762975852382,-217.2939494,0.0004287,10]
[393778140,1762975852393,-250.0,0.0004287,10]
[393778141,1762975852402,-151.0,0.0004287,10]
[393778142,1762975852412,-554.07313884,0.0004287,10]
[393778143,1762975852421,-151.0,0.0004287,10]
[393778144,1762975852430,-151.0,0.0004287,10]
[393778145,1762975852440,-151.0,0.0004287,10]
[393778146,1762975852449,-250.0,0.0004287,10]
[393778147,1762975852459,-151.0,0.0004287,10]
[393778148,1762975852468,-231.49080901,0.0004287,10]
[393778149,1762975852477,-250.0,0.0004287,10]
[393778150,1762975852486,-151.0,0.0004287,10]
[393778151,1762975852495,-250.0,0.0004287,10]
[393778152,1762975852505,-151.0,0.0004287,10]
[393778153,1762975852514,-250.0,0.0004287,10]
[393778154,1762975852523,-250.0,0.0004287,10]
[393778155,1762975852533,-250.0,0.0004287,10]
[393778156,1762975852546,-250.0,0.0004287,10]
[393778157,1762975852556,-250.0,0.0004287,10]
[393778158,1762975852565,-250.0,0.0004287,10]
[393778159,1762975852575,-250.0,0.0004287,10]
[393778160,1762975852584,-250.0,0.0004287,10]
[393778161,1762975852594,-209.40437684,0.0004287,10]
[393778162,1762975852604,-250.0,0.0004287,10]
[393778163,1762975852614,-250.0,0.0004287,10]
[393778164,1762975852624,-217.15233878,0.0004287,10]
[393778165,1762975852633,-250.0,0.0004287,10]
[393778166,1762975852642,-151.0,0.0004287,10]
[393778167,1762975852652,-250.0,0.0004287,10]
[393778168,1762975852661,-225.18697532,0.0004287,10]
[393778169,1762975852670,-250.0,0.0004287,10]
[393778170,1762975852681,-151.0,0.0004287,10]
[393778171,1762975852690,-233.51889341,0.0004287,10]
[393778172,1762975852699,-270.40114866,0.0004287,10]
[393778173,1762975852708,-151.0,0.0004287,10]
[393778174,1762975852718,-242.15909246,0.0004287,10]
[393778175,1762975852727,-151.0,0.0004287,10]
[393778176,1762975852736,-251.11897888,0.0004287,10]
[393778177,1762975852746,-151.0,0.0004287,10]
[393778178,1762975852755,-260.4103811,0.0004287,10]
[393778179,1762975852764,-270.0455652,0.0004287,10]
[393778180,1762975852773,-280.03725112,0.0004287,10]
[393778181,1762975852782,-290.39862941,0.0004287,10]
[393778182,1762975852791,-301.1433787,0.0004287,10]
[393778183,1762975852800,-151.0,0.00042871,14]
[393778184,1762975852809,-151.0,0.00042871,14]
[393778185,1762975852819,-159.0,0.00042871,14]
[393778186,1762975852828,-186.29,0.00043,14]
[393778187,1762975852837,-150.0,0.00043,10]
[393778188,1762975852847,-798.4657677,0.00043023,2]
[393778189,1762975852855,-2440.32,0.000431,14]
[393778190,1762975852865,-151.0,0.000432,120]
[393778191,1762975852874,-500.0,0.00043373,10]
[393778192,1762975852883,-500.0,0.00043373,10]
[393778193,1762975852892,-500.0,0.00043373,10]
[393778194,1762975852902,-1469.81,0.00043389,2]
[393778195,1762975852912,-1469.81,0.00043389,2]
[393778196,1762975852921,-175.139606,0.0004339,120]
[393778197,1762975852930,-175.139606,0.0004339,120]
[393778198,1762975852939,-175.139606,0.0004339,120]
[393778199,1762975852948,-175.139606,0.0004339,120]
[393778200,1762975852958,-186.880292,0.0004339,120]
[393778201,1762975852967,-2000.0,0.000434,34]
[393778202,1762975852976,-388.48944535,0.0004344,16]
[393778203,1762975852987,-193.48748641,0.00043507,30]
[393778204,1762975853000,-250.0,0.00043548,10]
[393778205,1762975853014,-193.48748641,0.00043726,30]
[393778206,1762975853028,-600.0,0.00043737,90]
[393778207,1762975853043,-317.6347588,0.00043853,30]
[393778208,1762975853055,-381.1928794,0.00043853,30]
[393778209,1762975853068,-317.5395745,0.00043853,30]
[393778210,1762975853081,-193.48748641,0.00043918,30]
[393778211,1762975853094,-422.02036073,0.00043921,10]
[393778212,1762975853107,-1295.0,0.00044,2]
[393778213,1762975853121,-162.10185242,0.00044082,30]
[393778214,1762975853134,-350.0,0.00044096,10]
[393778215,1762975853148,-193.48748641,0.00044137,30]
[393778216,1762975853163,-211.797476,0.00044162,2]
[393778217,1762975853176,-447.0,0.00044249,120]
[393778218,1762975853188,-151.0,0.000443,120]
[393778219,1762975853202,-239.0,0.00044337,120]
[393778220,1762975853214,-159.0,0.00044337,120]
[393778221,1762975853225,-193.48748641,0.00044356,30]
[393778222,1762975853239,-159.0,0.00044364,120]
[393778223,1762975853252,-2059.02882292,0.0004438,3]
[393778224,1762975853265,-151.0,0.0004439,120]
[393778225,1762975853278,-224.893709,0.0004439,120]
[393778226,1762975853288,-224.893709,0.0004439,120]
[393778227,1762975853299,-224.893709,0.0004439,120]
[393778228,1762975853312,-224.893714,0.0004439,120]
[393778229,1762975853323,-151.0,0.0004439,2]
[393778230,1762975853337,-374.065547,0.0004439,120]
[393778231,1762975853350,-374.065547,0.0004439,120]
[393778232,1762975853364,-374.065547,0.0004439,120]
[393778233,1762975853376,-374.06554,0.0004439,120]
[393778234,1762975853390,-319.87508,0.0004439,120]
[393778235,1762975853406,-319.87508,0.0004439,120]
[393778236,1762975853422,-151.0,0.0004439,120]
[393778237,1762975853437,-319.87508,0.0004439,120]
[393778238,1762975853449,-319.875081,0.0004439,120]
[393778239,1762975853459,-375.741349,0.0004439,120]
[393778240,1762975853470,-375.741349,0.0004439,120]
[393778241,1762975853482,-375.741349,0.0004439,120]
[393778242,1762975853495,-375.741343,0.0004439,120]
[393778243,1762975853509,-151.0,0.0004439,120]
[393778244,1762975853522,-2000.0,0.000444,36]
[393778245,1762975853534,-193.48748641,0.00044575,30]
[393778246,1762975853549,-450.0,0.00044644,10]
[393778247,1762975853561,-162.10185242,0.00044658,30]
[393778248,1762975853572,-186.90691184,0.000447,60]
[393778249,1762975853586,-193.48748641,0.00044767,30]
[393778250,1762975853600,-1170.63,0.00044785,2]
[393778251,1762975853611,-193.48748641,0.00044986,30]
[393778252,1762975853624,-297.91533658,0.00045,120]
[393778253,1762975853635,-485.86685207,0.00045,120]
[393778254,1762975853648,-550.0,0.00045192,10]
[393778255,1762975853659,-193.48748641,0.00045205,30]
[393778256,1762975853674,-193.48748641,0.00045397,30]
[393778257,1762975853686,-993.0,0.000454,38]
[393778258,1762975853698,-2871.3855902,0.00045471,28]
[393778259,1762975853710,-151.0,0.000455,120]
[393778260,1762975853720,-193.48748641,0.00045616,30]
[393778261,1762975853732,-650.0,0.0004574,10]
[393778262,1762975853743,-193.48748641,0.00045836,30]
[393778263,1762975853756,-200.0,0.00046,3]
[393778264,1762975853767,-260.656007,0.00046143,2]
[393778265,1762975853780,-474.0,0.00046249,120]
[393778266,1762975853792,-750.0,0.00046288,10]
[393778267,1762975853804,-151.0,0.000467,120]
[393778268,1762975853815,-850.0,0.00046836,10]
[393778269,1762975853827,-151.0,0.00046925,30]
[393778270,1762975853838,-1469.81,0.00047207,2]
[393778271,1762975853851,-798.4657677,0.00047207,2]
[393778272,1762975853862,-455.4867323,0.00047384,10]
[393778273,1762975853874,-1337.87,0.0004743,2]
[393778274,1762975853885,-2000.0,0.00047555,21]
[393778275,1762975853896,-151.0,0.000478,120]
[393778276,1762975853908,-265.09017258,0.00048,120]
[393778277,1762975853921,-212.38771199,0.00048,45]
[393778278,1762975853933,-720.0,0.00048111,90]
[393778279,1762975853944,-501.0,0.00048249,120]
[393778280,1762975853955,-246.92135,0.000483,120]
[393778281,1762975853968,-200.0,0.000483,120]
[393778282,1762975853979,-151.0,0.00049,120]
[393778283,1762975853991,-935.4848536,0.00049,120]
[393778284,1762975854003,-179.6025,0.00049315,120]
[393778285,1762975854013,-2059.02882292,0.0004997,4]
[393778286,1762975854025,-273.28040687,0.00049987,90]
[393778287,1762975854038,-1469.81,0.00049989,2]
[393778288,1762975854048,-151.0,0.0004999,120]
[393778289,1762975854060,-175.139606,0.0004999,120]
[393778290,1762975854071,-175.139606,0.0004999,120]
[393778291,1762975854082,-175.139606,0.0004999,120]
[393778292,1762975854093,-175.139606,0.0004999,120]
[393778293,1762975854113,-175.139606,0.0004999,120]
[393778294,1762975854124,-175.139606,0.0004999,120]
[393778295,1762975854136,-175.139606,0.0004999,120]
[393778296,1762975854148,-175.139606,0.0004999,120]
[393778297,1762975854159,-1469.81,0.00049999,2]
[393778298,1762975854172,-6106.05,0.0005,2]
[393778299,1762975854183,-217.15609484,0.0005,5]
[393778300,1762975854195,-211.797476,0.0005,2]
[393778301,1762975854206,-243.21246115,0.0005,5]
[393778302,1762975854216,-156.27621244,0.0005,120]
[393778303,1762975854227,-221.93559484,0.0005,20]
[393778304,1762975854239,-199.0,0.0005,7]
[393778305,1762975854251,-168.95225975,0.0005,120]
[393778306,1762975854262,-192.2157623,0.0005,90]
[393778307,1762975854273,-157.43474139,0.0005,120]
[393778308,1762975854284,-1505.1,0.00050065,2]
[393778309,1762975854295,-313.63,0.000501,14]
[393778310,1762975854306,-151.0,0.000502,120]
[393778311,1762975854317,-302.91638311,0.00050249,120]
[393778312,1762975854328,-359.205,0.00050273,120]
[393778313,1762975854340,-2059.02882292,0.0005098,4]
[393778314,1762975854351,-150.0,0.00051,85]
[393778315,1762975854360,-325.46,0.00051,30]
[393778316,1762975854371,-389.80061548,0.00051,120]
[393778317,1762975854381,-538.8075,0.00051232,120]
[393778318,1762975854391,-151.0,0.000513,120]
[393778319,1762975854401,-798.4657677,0.00051392,2]
[393778320,1762975854410,-1469.81,0.0005219,2]
[393778321,1762975854420,-718.41,0.00052191,120]
[393778322,1762975854430,-151.0,0.000525,120]
[393778323,1762975854440,-260.656007,0.00052632,2]
[393778324,1762975854449,-1672.33,0.000527,2]
[393778325,1762975854459,-864.0,0.00052922,120]
[393778326,1762975854469,-1469.81,0.00052989,2]
[393778327,1762975854652,-1469.81,0.00052989,2]
[393778328,1762975854665,-1469.81,0.00052989,2]
[393778329,1762975854674,-1469.81,0.00052989,2]
[393778330,1762975854684,-1469.81,0.00052989,2]
[393778331,1762975854693,-1469.81,0.00052989,2]
[393778332,1762975854702,-1469.81,0.00052989,2]
[393778333,1762975854711,-1469.84476549,0.00052989,2]
[393778334,1762975854720,-151.0,0.0005299,120]
[393778335,1762975854730,-898.0125,0.0005315,120]
[393778336,1762975854738,-500.0,0.00053151,60]
[393778337,1762975854747,-500.0,0.00053699,60]
[393778338,1762975854757,-151.0,0.000537,120]
[393778339,1762975854766,-349.16,0.00053795,120]
[393778340,1762975854776,-175.139606,0.0005398,120]
[393778341,1762975854785,-175.139606,0.0005398,120]
[393778342,1762975854795,-175.139606,0.0005398,120]
[393778343,1762975854804,-175.139606,0.0005398,120]
[393778344,1762975854814,-2059.02882292,0.0005398,4]
[393778345,1762975854824,-200.0,0.00053989,60]
[393778346,1762975854833,-151.0,0.0005399,120]
[393778347,1762975854843,-4300.0,0.00054,7]
[393778348,1762975854859,-2440.32,0.00054,14]
[393778349,1762975854869,-272.82455935,0.00054,120]
[393778350,1762975854879,-1077.615,0.00054109,120]
[393778351,1762975854888,-500.0,0.00054247,60]
[393778352,1762975854898,-175.139606,0.00054762,120]
[393778353,1762975854908,-175.139606,0.00054762,120]
[393778354,1762975854918,-175.139606,0.00054762,120]
[393778355,1762975854927,-175.139614,0.00054762,120]
[393778356,1762975854936,-2059.02882292,0.00054774,4]
[393778357,1762975854946,-8236.11529168,0.00054784,4]
[393778358,1762975854956,-151.0,0.00054784,120]
[393778359,1762975854965,-384.3858411,0.00054794,120]
[393778360,1762975854974,-500.0,0.00054794,120]
[393778361,1762975854983,-500.0,0.00054794,2]
[393778362,1762975854993,-500.0,0.00054794,120]
[393778363,1762975855002,-500.0,0.00054794,120]
[393778364,1762975855012,-500.0,0.00054794,120]
[393778365,1762975855022,-500.0,0.00054794,120]
[393778366,1762975855031,-515.64135178,0.00054794,120]
[393778367,1762975855041,-500.0,0.00054794,120]
[393778368,1762975855050,-522.4657533,0.00054794,120]
[393778369,1762975855059,-709.23,0.00054794,2]
[393778370,1762975855073,-511.68573618,0.00054794,120]
[393778371,1762975855083,-515.20020791,0.00054794,120]
[393778372,1762975855093,-500.0,0.00054794,120]
[393778373,1762975855102,-500.0,0.00054794,120]
[393778374,1762975855111,-500.0,0.00054794,120]
[393778375,1762975855120,-500.0,0.00054794,120]
[393778376,1762975855129,-500.0,0.00054794,120]
[393778377,1762975855138,-500.0,0.00054794,120]
[393778378,1762975855147,-341.62641381,0.00054794,120]
[393778379,1762975855156,-151.0,0.00054794,120]
[393778380,1762975855166,-500.0,0.00054794,120]
[393778381,1762975855175,-427.4511482,0.00054794,2]
[393778382,1762975855185,-534.13016409,0.00054794,120]
[393778383,1762975855195,-500.0,0.00054794,120]
[393778384,1762975855204,-500.0,0.00054794,2]
[393778385,1762975855213,-500.0,0.00054794,120]
[393778386,1762975855222,-203.94770541,0.00054794,120]
[393778387,1762975855232,-493.0847964,0.00054794,120]
[393778388,1762975855241,-271.61398109,0.00054794,120]
[393778389,1762975855251,-528.09716393,0.00054794,120]
[393778390,1762975855260,-1000.0,0.00054794,7]
[393778391,1762975855269,-479.07674603,0.00054794,120]
[393778392,1762975855279,-542.33245153,0.00054794,120]
[393778393,1762975855289,-494.11799533,0.00054794,120]
[393778394,1762975855298,-517.0209873,0.00054794,120]
[393778395,1762975855308,-550.6601408,0.00054794,120]
[393778396,1762975855317,-500.0,0.00054794,120]
[393778397,1762975855326,-271.98923502,0.00054794,120]
[393778398,1762975855336,-530.36436047,0.00054794,120]
[393778399,1762975855345,-503.28013756,0.00054794,14]
[393778400,1762975855354,-525.2282495,0.00054794,120]
[393778401,1762975855364,-500.0,0.00054794,120]
[393778402,1762975855373,-513.07835006,0.00054794,120]
[393778403,1762975855382,-500.0,0.00054794,120]
[393778404,1762975855392,-500.0,0.00054794,120]
[393778405,1762975855401,-560.18607247,0.00054794,120]
[393778406,1762975855410,-531.95006125,0.00054794,120]
[393778407,1762975855422,-500.0,0.00054794,2]
[393778408,1762975855432,-512.4527995,0.00054794,120]
[393778409,1762975855442,-500.0,0.00054794,120]
[393778410,1762975855451,-1000.57,0.00054794,120]
[393778411,1762975855461,-500.0,0.00054794,120]
[393778412,1762975855470,-500.0,0.00054794,30]
[393778413,1762975855479,-312.26811853,0.00054794,120]
[393778414,1762975855489,-500.0,0.00054794,120]
[393778415,1762975855498,-517.26874228,0.00054794,120]
[393778416,1762975855508,-518.07032727,0.00054794,120]
[393778417,1762975855517,-564.73253831,0.00054794,120]
[393778418,1762975855526,-500.0,0.00054794,120]
[393778419,1762975855536,-501.8483461,0.00054794,120]
[393778420,1762975855549,-500.0,0.00054794,120]
[393778421,1762975855559,-500.0,0.00054794,120]
[393778422,1762975855568,-500.0,0.00054794,120]
[393778423,1762975855577,-500.0,0.00054794,120]
[393778424,1762975855587,-500.0,0.00054794,120]
[393778425,1762975855597,-535.72626617,0.00054794,120]
[393778426,1762975855606,-500.0,0.00054794,120]
[393778427,1762975855615,-500.0,0.00054794,120]
[393778428,1762975855626,-529.36801819,0.00054794,120]
[393778429,1762975855635,-478.29179043,0.00054794,120]
[393778430,1762975855645,-240.38503109,0.00054794,120]
[393778431,1762975855654,-500.0,0.00054794,120]
[393778432,1762975855664,-500.0,0.00054794,120]
[393778433,1762975855673,-535.87332929,0.00054794,120]
[393778434,1762975855682,-500.0,0.00054794,120]
[393778435,1762975855692,-500.0,0.00054794,60]
[393778436,1762975855701,-500.0,0.00054794,120]
[393778437,1762975855710,-500.0,0.00054794,120]
[393778438,1762975855725,-500.0,0.00054794,120]
[393778439,1762975855734,-500.0,0.00054794,120]
[393778440,1762975855744,-405.20198823,0.00054794,120]
[393778441,1762975855753,-500.0,0.00054794,120]
[393778442,1762975855762,-500.0,0.00054794,120]
[393778443,1762975855772,-500.0,0.00054794,120]
[393778444,1762975855781,-204.05206333,0.00054794,120]
[393778445,1762975855790,-616.89857827,0.00054794,120]
[393778446,1762975855798,-500.0,0.00054794,120]
[393778447,1762975855807,-500.0,0.00054794,120]
[393778448,1762975855816,-500.0,0.00054794,120]
[393778449,1762975855825,-614.29030661,0.00054794,120]
[393778450,1762975855834,-500.0,0.00054794,120]
[393778451,1762975855843,-637.82335878,0.00054794,120]
[393778452,1762975855853,-500.0,0.00054794,120]
[393778453,1762975855862,-500.0,0.00054794,120]
[393778454,1762975855871,-500.0,0.00054794,120]
[393778455,1762975855880,-155.60477771,0.00054794,120]
[393778456,1762975855890,-500.0,0.00054794,120]
[393778457,1762975855899,-545.71,0.00054794,120]
[393778458,1762975855908,-1000.0,0.00054794,2]
[393778459,1762975855917,-500.0,0.00054794,120]
[393778460,1762975855926,-431.72190235,0.00054794,120]
[393778461,1762975855935,-500.0,0.00054794,120]
[393778462,1762975855944,-500.0,0.00054794,120]
[393778463,1762975855954,-500.0,0.00054794,120]
[393778464,1762975855963,-500.0,0.00054794,120]
[393778465,1762975855972,-500.0,0.00054794,120]
[393778466,1762975855981,-500.0,0.00054794,120]
[393778467,1762975855991,-500.0,0.00054794,120]
[393778468,1762975856000,-642.41504037,0.00054794,120]
[393778469,1762975856010,-500.0,0.00054794,30]
[393778470,1762975856020,-372.27695469,0.00054794,120]
[393778471,1762975856029,-508.50449565,0.00054794,120]
[393778472,1762975856038,-226.67572966,0.00054794,120]
[393778473,1762975856048,-500.0,0.00054794,120]
[393778474,1762975856058,-500.0,0.00054794,120]
[393778475,1762975856067,-500.0,0.00054794,120]
[393778476,1762975856081,-500.0,0.00054794,120]
[393778477,1762975856091,-354.05767302,0.00054794,120]
[393778478,1762975856100,-500.0,0.00054794,120]
[393778479,1762975856110,-2352.6,0.00054794,30]
[393778480,1762975856119,-196.38753379,0.00054794,120]
[393778481,1762975856128,-500.0,0.00054794,120]
[393778482,1762975856139,-500.0,0.00054794,120]
[393778483,1762975856147,-500.0,0.00054794,120]
[393778484,1762975856156,-404.75189628,0.00054794,20]
[393778485,1762975856166,-500.0,0.00054794,120]
[393778486,1762975856175,-500.0,0.00054794,120]
[393778487,1762975856184,-500.0,0.00054794,120]
[393778488,1762975856193,-500.0,0.00054794,120]
[393778489,1762975856202,-455.39745432,0.00054794,120]
[393778490,1762975856212,-500.0,0.00054794,120]
[393778491,1762975856221,-231.13445674,0.00054794,120]
[393778492,1762975856230,-500.0,0.00054794,120]
[393778493,1762975856239,-1197.95,0.00054794,120]
[393778494,1762975856248,-500.0,0.00054794,30]
[393778495,1762975856257,-500.0,0.00054794,120]
[393778496,1762975856266,-371.59657185,0.00054794,120]
[393778497,1762975856276,-184.87501939,0.00054794,120]
[393778498,1762975856285,-209.06,0.00054794,120]
[393778499,1762975856295,-621.21976381,0.00054794,120]
[393778500,1762975856304,-500.0,0.00054794,120]
[393778501,1762975856313,-500.0,0.00054794,120]
[393778502,1762975856322,-224.48,0.00054794,120]
[393778503,1762975856332,-500.0,0.00054794,120]
[393778504,1762975856341,-261.18390031,0.00054794,120]
[393778505,1762975856350,-438.10620369,0.00054794,120]
[393778506,1762975856359,-583.79,0.00054794,120]
[393778507,1762975856369,-536.1475554,0.00054794,120]
[393778508,1762975856378,-500.0,0.00054794,120]
[393778509,1762975856388,-542.27984292,0.00054794,120]
[393778510,1762975856397,-215.68068796,0.00054794,120]
[393778511,1762975856406,-500.0,0.00054794,120]
[393778512,1762975856417,-232.21878074,0.00054794,120]
[393778513,1762975856427,-500.0,0.00054794,120]
[393778514,1762975856437,-293.69819137,0.00054794,120]
[393778515,1762975856447,-388.29929519,0.00054794,120]
[393778516,1762975856457,-226.92367817,0.00054794,120]
[393778517,1762975856467,-352.88962864,0.00054794,120]
[393778518,1762975856476,-179.2901937,0.00054794,120]
[393778519,1762975856486,-500.0,0.00054794,120]
[393778520,1762975856495,-500.0,0.00054794,120]
[393778521,1762975856505,-367.63075712,0.00054794,120]
[393778522,1762975856514,-500.0,0.00054794,120]
[393778523,1762975856523,-1000.0,0.00054794,120]
[393778524,1762975856532,-500.0,0.00054794,120]
[393778525,1762975856543,-500.0,0.00054794,120]
[393778526,1762975856555,-322.14393951,0.00054794,120]
[393778527,1762975856565,-195.32525441,0.00054794,120]
[393778528,1762975856574,-500.0,0.00054794,120]
[393778529,1762975856583,-500.0,0.00054794,120]
[393778530,1762975856594,-403.14312732,0.00054794,120]
[393778531,1762975856603,-156.89570581,0.00054794,120]
[393778532,1762975856613,-388.90612683,0.00054794,120]
[393778533,1762975856623,-205.84362416,0.00054794,120]
[393778534,1762975856632,-485.28882307,0.00054794,120]
[393778535,1762975856642,-500.0,0.00054794,120]
[393778536,1762975856652,-500.0,0.00054794,10]
[393778537,1762975856662,-317.93150128,0.00054794,120]
[393778538,1762975856671,-234.57879705,0.00054794,120]
[393778539,1762975856681,-321.23101171,0.00054794,120]
[393778540,1762975856690,-308.88024557,0.00054794,120]
[393778541,1762975856700,-511.23023271,0.00054794,120]
[393778542,1762975856709,-251.61696362,0.00054794,120]
[393778543,1762975856720,-500.0,0.00054794,14]
[393778544,1762975856730,-641.23808507,0.00054794,120]
[393778545,1762975856739,-500.0,0.00054794,120]
[393778546,1762975856749,-500.0,0.00054794,120]
[393778547,1762975856759,-313.64679586,0.00054794,120]
[393778548,1762975856770,-341.12381317,0.00054794,120]
[393778549,1762975856780,-500.0,0.00054794,120]
[393778550,1762975856790,-175.3741224,0.00054794,120]
[393778551,1762975856799,-500.0,0.00054794,120]
[393778552,1762975856808,-500.0,0.00054794,120]
[393778553,1762975856818,-448.92014903,0.00054794,120]
[393778554,1762975856830,-422.34581334,0.00054794,120]
[393778555,1762975856841,-500.0,0.00054794,120]
[393778556,1762975856851,-500.0,0.00054794,120]
[393778557,1762975856862,-169.16147128,0.00054794,120]
[393778558,1762975856872,-500.0,0.00054794,120]
[393778559,1762975856883,-384.76798617,0.00054794,120]
[393778560,1762975856892,-220.95054848,0.00054794,120]
[393778561,1762975856902,-234.96716675,0.00054794,120]
[393778562,1762975856912,-266.7056665,0.00054794,120]
[393778563,1762975856923,-257.19241485,0.00054794,120]
[393778564,1762975856933,-500.0,0.00054794,120]
[393778565,1762975856945,-1000.0,0.00054794,2]
[393778566,1762975856956,-500.0,0.00054794,120]
[393778567,1762975856966,-500.0,0.00054794,120]
[393778568,1762975856979,-500.0,0.00054794,120]
[393778569,1762975856990,-500.10266896,0.00054794,120]
[393778570,1762975857000,-458.04279978,0.00054794,120]
[393778571,1762975857011,-500.0,0.00054794,120]
[393778572,1762975857022,-270.52028749,0.00054794,120]
[393778573,1762975857032,-524.5,0.00054794,120]
[393778574,1762975857042,-240.21641097,0.00054794,120]
[393778575,1762975857054,-397.73562904,0.00054794,120]
[393778576,1762975857065,-208.29997807,0.00054794,120]
[393778577,1762975857075,-377.85841793,0.00054794,120]
[393778578,1762975857088,-500.0,0.00054794,120]
[393778579,1762975857098,-383.69,0.00054794,120]
[393778580,1762975857107,-175.93543775,0.00054794,120]
[393778581,1762975857116,-212.28530316,0.00054794,120]
[393778582,1762975857125,-323.66411406,0.00054794,120]
[393778583,1762975857135,-500.0,0.00054794,120]
[393778584,1762975857145,-500.61114253,0.00054794,120]
[393778585,1762975857155,-370.52809545,0.00054794,120]
[393778586,1762975857165,-500.0,0.00054794,120]
[393778587,1762975857175,-500.0,0.00054794,120]
[393778588,1762975857185,-458.13635972,0.00054794,120]
[393778589,1762975857195,-500.0,0.00054794,120]
[393778590,1762975857205,-500.0,0.00054794,120]
[393778591,1762975857214,-500.0,0.00054794,120]
[393778592,1762975857224,-319.08757058,0.00054794,120]
[393778593,1762975857235,-232.29983644,0.00054794,120]
[393778594,1762975857246,-812.04,0.00054794,2]
[393778595,1762975857257,-500.0,0.00054794,120]
[393778596,1762975857267,-500.0,0.00054794,120]
[393778597,1762975857277,-500.0,0.00054794,120]
[393778598,1762975857287,-500.0,0.00054794,120]
[393778599,1762975857297,-500.0,0.00054794,120]
[393778600,1762975857307,-500.0,0.00054794,120]
[393778601,1762975857317,-169.71657994,0.00054794,120]
[393778602,1762975857327,-279.67311926,0.00054794,120]
[393778603,1762975857337,-500.0,0.00054794,120]
[393778604,1762975857348,-500.0,0.00054794,120]
[393778605,1762975857358,-500.0,0.00054794,120]
[393778606,1762975857369,-346.30048635,0.00054794,120]
[393778607,1762975857379,-368.38100896,0.00054794,120]
[393778608,1762975857390,-277.3374161,0.00054794,120]
[393778609,1762975857401,-619.04231683,0.00054794,120]
[393778610,1762975857411,-227.98321213,0.00054794,120]
[393778611,1762975857422,-500.0,0.00054794,120]
[393778612,1762975857432,-227.35702626,0.00054794,120]
[393778613,1762975857442,-647.49,0.00054794,30]
[393778614,1762975857454,-500.0,0.00054794,120]
[393778615,1762975857466,-500.0,0.00054794,120]
[393778616,1762975857477,-972.79,0.00054794,120]
[393778617,1762975857487,-500.0,0.00054794,120]
[393778618,1762975857497,-502.73599615,0.00054794,120]
[393778619,1762975857509,-363.44723719,0.00054794,120]
[393778620,1762975857520,-584.88240881,0.00054794,120]
[393778621,1762975857530,-1385.0,0.00054794,7]
[393778622,1762975857545,-500.0,0.00054794,120]
[393778623,1762975857558,-462.3251103,0.00054794,120]
[393778624,1762975857570,-512.84691711,0.00054794,120]
[393778625,1762975857583,-500.0,0.00054794,120]
[393778626,1762975857593,-609.77,0.00054794,120]
[393778627,1762975857604,-500.0,0.00054794,120]